Cogmind - Beta 13 @@@ ROGUE MODE // 2024.03.24 @ 03:13:13 Player: daddywarlord Result: Destroyed by G-47 Trooper with Particle Gun Performance ------------- Evolutions (2) 1000 Regions Visited (3) 600 Robots Destroyed (21) 105 Value Destroyed (457) 457 Prototype IDs (1) 20 Alien Tech Used (0) 0 Bonus (0) 0 TOTAL SCORE: 2182 Bonus ------- None Cogmind --------- Core Integrity 0/550 Matter 300/300 Energy 100/100 System Corruption 0% Temperature Cool (14) Movement Core (1400) Ox27 Location -8/Materials Parts ------- > --- POWER (1) -------- (None) > --- PROPULSION (4) --- (None) > --- UTILITY (4) ------ Huge Storage Unit ECM Suite > --- WEAPON (2) ------- (None) > --- INVENTORY (25) --- Light Ion Engine Small Storage Unit Maul Peak State ------------ > --- POWER ------------ Ion Engine > --- PROPULSION ------- Carbon-fiber Leg Carbon-fiber Leg > --- UTILITY ---------- Heat Sink Huge Storage Unit ECM Suite Insulated Plating > --- WEAPON ----------- Heavy Flail > --- INVENTORY -------- Small Storage Unit Maul [Rating: 16] Favorites ----------- Power Light Ion Engine Engine Light Ion Engine Propulsion Light Treads Treads Light Treads Leg Aluminum Leg Utility Heat Sink Device Heat Sink Storage Huge Storage Unit Protection Propulsion Shielding Weapon EM Pulse Gun Energy Gun EM Pulse Gun Energy Cannon Advanced Beam Cannon Ballistic Gun Assault Rifle Impact Weapon Heavy Flail Slashing Weapon Katana Build | -11 -10 -9 -8 ------- Run | Yrd Mat Mat Mat Slots Evolved 4 | . . 2 2 Power . | . . . . Propulsion 2 | . . 1 1 Utility 2 | . . 1 1 Weapon . | . . . . Parts Attached 30 | 7 1 13 9 Power 3 | 2 . . 1 Engine 3 | 2 . . 1 Core . | . . . . Reactor . | . . . . Propulsion 8 | 2 . 3 3 Treads 4 | . . 3 1 Leg 4 | 2 . . 2 Wheel . | . . . . Hover . | . . . . Flight . | . . . . Utility 8 | 1 1 4 2 Device 3 | . 1 2 . Storage 3 | 1 . 2 . Processor . | . . . . Hackware . | . . . . Protection 2 | . . . 2 Artifact . | . . . . Weapon 11 | 2 . 6 3 Energy Gun 5 | 2 . 3 . Energy Cannon 1 | . . 1 . Ballistic Gun 1 | . . . 1 Ballistic Cannon . | . . . . Launcher . | . . . . Special Weapon . | . . . . Impact Weapon 2 | . . . 2 Slashing Weapon 2 | . . 2 . Piercing Weapon . | . . . . Special Melee Weapon . | . . . . Unidentified Prototypes 1 | . . 1 . Parts Lost 10 | . . . 10 Power 2 | . . . 2 Propulsion 3 | . . . 3 Utility 3 | . . . 3 Weapon 2 | . . . 2 Highest Loss Streak 6 | . . . 6 To Critical Strikes . | . . . . Average Slot Usage (%) 88 | . 94 93 84 Engine 10 | . 14 11 8 Treads 17 | . . 19 21 Leg 10 | . 28 8 6 Device 16 | . 8 20 17 Storage 10 | . 14 11 9 Protection 4 | . . . 7 Energy Gun 12 | . 28 21 3 Ballistic Gun 1 | . . . 2 Impact Weapon 4 | . . . 7 Naked Turns . | . . . . Heaviest Build 94 | 11 12 89 94 Greatest Support 80 | 20 20 60 80 Greatest Overweight (x) 3 | . . 1 3 Average Overweight (x) . | . . . 1 Largest Inventory Capacity 25 | 8 8 25 25 Average Capacity 18 | 6 8 14 25 Most Carried 9 | 5 6 9 6 Average Carried 4 | 3 5 5 3 Final Capacity 25 | 8 8 25 25 Final Carried 6 | 4 6 4 3 Class Distribution -------------------- 100% | Mutant Dominant Class ---------------- Mutant | -10/Materials Mutant | -9/Materials Mutant | -8/Materials Resources | -11 -10 -9 -8 ----------- Run | Yrd Mat Mat Mat Matter Collected 490 | 202 78 50 160 Remotely . | . . . . Salvage Created 718 | . 95 60 563 Parts 20 | . 4 3 13 Haulers Intercepted . | . . . . Recyclers Shooed . | . . . . Parts Field Recycled . | . . . . Retrieved Matter . | . . . . Parts Self-Destructed . | . . . . Prevented . | . . . . Kills | -11 -10 -9 -8 ------- Run | Yrd Mat Mat Mat Combat Hostiles Destroyed 13 | . 2 1 10 Melee 4 | . . . 4 Guns 3 | . 2 1 . Classes Destroyed 7 | . 1 1 5 Worker 3 | . . . 3 Builder 2 | . . . 2 Recycler 2 | . . . 2 Watcher 1 | . . . 1 Swarmer 5 | . . . 5 Grunt 5 | . 2 . 3 Sentry 3 | . . 1 2 Best Kill Streak 6 | . 2 1 6 Combat Bots Only 3 | . 2 1 3 Max Kills in Single Turn 1 | . 1 1 1 Gunslinging . | . . . . Exploded . | . . . . Melee 1 | . . . 1 Uniques/NPCs Destroyed . | . . . . Combat | -11 -10 -9 -8 -------- Run | Yrd Mat Mat Mat Hostile Shots Fired 256 | . 18 4 234 Missed 67 | . 4 2 61 Damage Taken 2228 | . 195 28 2005 Core 583 | . 16 14 553 Absorbed by Shields . | . . . . Redirected to Shielding 50 | . . . 50 Core Remaining (%) 96 | 100 93 96 . Volleys Fired 14 | . 11 3 . Largest 2 | . 2 2 . Hottest 80 | . 80 80 . Shots Fired 28 | . 22 6 . Gun 28 | . 22 6 . Cannon . | . . . . Launcher . | . . . . Special . | . . . . Kinetic . | . . . . Thermal 14 | . 11 3 . Explosive . | . . . . Electromagnetic 14 | . 11 3 . Robot Hit Streak 8 | . 8 2 . Robot Miss Streak 2 | . 2 1 . Penetration Max . | . . . . Secondary Targets . | . . . . Shots Hit Robots 52 | . 16 4 32 Core Hits 11 | . 5 2 4 Critical Kills 3 | . . . 3 Critical Parts Destroyed 5 | . . . 5 Critical Strikes 8 | . . . 8 Smash 8 | . . . 8 Melee Attacks 51 | . . . 51 Impact 51 | . . . 51 Slashing . | . . . . Piercing . | . . . . Sneak Attacks 9 | . . . 9 Combat Hostiles 1 | . . . 1 Follow-up Attacks . | . . . . Damage Inflicted 2029 | . 196 45 1788 Guns 241 | . 196 45 . Cannons . | . . . . Explosions . | . . . . Melee 1788 | . . . 1788 Ramming . | . . . . Kinetic . | . . . . Thermal 115 | . 92 23 . Explosive . | . . . . Electromagnetic 126 | . 104 22 . Impact 1788 | . . . 1788 Slashing . | . . . . Piercing . | . . . . Highest Corruption . | . . . . Average Corruption . | . . . . Corruption Purged . | . . . . Corruption Blocked . | . . . . Overload Shots . | . . . . Overflow Damage 675 | . . . 675 Projectiles 36 | . . . 36 Explosions . | . . . . Melee 639 | . . . 639 Knockbacks 10 | . . . 10 Impact 9 | . . . 9 Kinetic . | . . . . Secondary 1 | . . . 1 Self-Inflicted Damage . | . . . . Shots . | . . . . Rammed . | . . . . Targets Rammed . | . . . . Kicked . | . . . . Crushed . | . . . . Highest Temperature 204 | . 204 . 5 Average Temperature 115 | . 118 . 5 Received Heat Transfer 633 | . 111 9 513 Siege Activations . | . . . . Robots Corrupted . | . . . . Combat Hostiles . | . . . . Parts Fried 15 | . 1 . 14 Impact Corruptions 29 | . . . 29 Robots Melted . | . . . . Combat Hostiles . | . . . . Parts Melted . | . . . . Heat Transferred 250 | . 200 50 . Parts Sabotaged . | . . . . Parts Stolen . | . . . . Parts Stripped . | . . . . Power Chain Reactions . | . . . . Alert | -11 -10 -9 -8 ------- Run | Yrd Mat Mat Mat Peak Influence 157 | . 50 95 157 Initial 20 | . . 20 . Average 44 | . 30 56 45 Maximum Alert Level . | . . . . Low Security (%) 100 | 100 100 100 100 Level 1 . | . . . . Level 2 . | . . . . Level 3 . | . . . . Level 4 . | . . . . Level 5 . | . . . . High Security . | . . . . Max Security . | . . . . Squads Dispatched 1 | . . . 1 Investigation 1 | . . . 1 Extermination . | . . . . Reinforcement . | . . . . Assault . | . . . . Garrison . | . . . . Intercept . | . . . . Searches Triggered . | . . . . Construction Impeded . | . . . . Haulers Reinforced . | . . . . Active Scanning Responses . | . . . . Cargo Convoy Interrupts . | . . . . Stealth | -11 -10 -9 -8 --------- Run | Yrd Mat Mat Mat Distress Signals 6 | . 1 . 5 Communications Jammed . | . . . . Distress Signals . | . . . . Times Spotted 42 | . 5 3 34 Peak Tracking Total 9 | . 4 1 9 Tactical Retreats 8 | . . . 8 Traps | -11 -10 -9 -8 ------- Run | Yrd Mat Mat Mat Traps Triggered 1 | . . . 1 Indirectly . | . . . . Trap Hack Attempts . | . . . . Triggered . | . . . . Disarmed . | . . . . Reprogrammed . | . . . . Reused . | . . . . Traps Extracted . | . . . . Installed . | . . . . Triggered . | . . . . Machines | -11 -10 -9 -8 ---------- Run | Yrd Mat Mat Mat Machines Disabled . | . . . . Max in Single Turn . | . . . . Machines Repaired . | . . . . Machines Dismantled . | . . . . Machines Sabotaged . | . . . . Overloaded Fab Kills . | . . . . Hacking | -11 -10 -9 -8 --------- Run | Yrd Mat Mat Mat Machines Accessed . | . . . . Terminals . | . . . . Fabricators . | . . . . Repair Stations . | . . . . Recycling Units . | . . . . Scanalyzers . | . . . . Garrison Access . | . . . . Total Hacks . | . . . . Successful . | . . . . Failed . | . . . . Catastrophic . | . . . . Database Lockouts . | . . . . Manual . | . . . . Terminals . | . . . . Fabricators . | . . . . Repair Stations . | . . . . Recycling Units . | . . . . Scanalyzers . | . . . . Garrison Access . | . . . . Terminal Hacks . | . . . . Fabricator Hacks . | . . . . Repair Station Hacks . | . . . . Recycling Unit Hacks . | . . . . Scanalyzer . | . . . . Garrison Access Hacks . | . . . . Unauthorized Hacks . | . . . . Terminals . | . . . . Fabricators . | . . . . Repair Stations . | . . . . Recycling Units . | . . . . Scanalyzers . | . . . . Garrison Access . | . . . . Data Cores Recovered . | . . . . Used . | . . . . Hacking Detections . | . . . . Full Trace Events . | . . . . Feedback Events . | . . . . Feedback Blocked . | . . . . Robot Schematics Acquired . | . . . . Robots Built . | . . . . Authchips . | . . . . Time . | . . . . Total Robot Build Rating . | . . . . Part Schematics Acquired . | . . . . Parts Built . | . . . . Authchips . | . . . . Time . | . . . . Total Part Build Rating . | . . . . Parts Repaired . | . . . . Time . | . . . . Parts Recycled . | . . . . Recycled Matter . | . . . . Retrieved Matter . | . . . . Retrieved Components . | . . . . Parts Scanalyzed . | . . . . Part Schematics Acquired . | . . . . Parts Damaged . | . . . . Bothacking | -11 -10 -9 -8 ------------ Run | Yrd Mat Mat Mat Used RIF Installer . | . . . . Robots Hacked . | . . . . Non-combat . | . . . . Combat . | . . . . Robot Hacks Applied . | . . . . Relay Couplers Released . | . . . . Fabnet Peak Effective % . | . . . . Robots Rewired . | . . . . Allies Hacked . | . . . . Hacks Repelled . | . . . . Allies | -11 -10 -9 -8 -------- Run | Yrd Mat Mat Mat Total Allies . | . . . . Largest Group . | . . . . Highest-Rated Group . | . . . . Highest-Rated Ally . | . . . . Total Orders . | . . . . Ally Attacks . | . . . . Total Damage . | . . . . Kills . | . . . . Allies Corrupted . | . . . . Allies Melted . | . . . . Intel | -11 -10 -9 -8 ------- Run | Yrd Mat Mat Mat Robot Analysis Total . | . . . . Derelict Logs Recovered . | . . . . Drone Launches . | . . . . Drone Recoveries . | . . . . Exploration | -11 -10 -9 -8 ------------- Run | Yrd Mat Mat Mat Turns Passed 1896 | 53 319 492 1032 Spaces Moved 811 | 36 225 254 296 Core 8 | 8 . . . Treads 324 | . . 110 214 Legs 479 | 28 225 144 82 Wheels . | . . . . Hover . | . . . . Flight . | . . . . Fastest Speed 50 | 50 120 120 240 Average Speed 184 | 104 120 159 264 Slowest Speed 330 | 120 120 240 330 Overloaded Moves . | . . . . Propulsion Burnouts . | . . . . Robots Hopped . | . . . . Cave-ins Triggered . | . . . . Exploration Rate (%) 20 | 4 27 21 30 Regions Visited 3 Branch Regions . Pre-discovered Areas . | . . . . Known Exits Taken . | . . . . Unknown Exits Taken 3 | 1 1 1 . Scrap Searched . | . . . . Spaces Dug . | . . . . Terrain Destroyed . | . . . . Melee . | . . . . Projectile . | . . . . AOE . | . . . . Terrain Rammed . | . . . . Walls Destroyed . | . . . . Machines Disabled . | . . . . Actions | -11 -10 -9 -8 --------- Run | Yrd Mat Mat Mat Total 1115 | 50 252 342 471 Wait 166 | . 13 50 103 Move 808 | 35 224 253 296 Hop . | . . . . Pick Up 28 | 7 3 11 7 Fast Attach 3 | 3 . . . Attach 26 | 4 1 12 9 Detach 4 | 1 . 2 1 Swap 1 | . . 1 . Drop 15 | . . 10 5 Fire 14 | . 11 3 . Melee 50 | . . . 50 Ram . | . . . . Kick . | . . . . Crush . | . . . . Escape Stasis . | . . . . Rewire . | . . . . Trap . | . . . . Miscellaneous . | . . . . Route ------- -11/Scrapyard -10/Materials -9/Materials -8/Materials History --------- Turn | Location | Event 13 | -11/Scrapyard | Discovered new exit (range 16) 54 | -11/Scrapyard | Entered Materials 242 | -10/Materials | Discovered new exit (range 15) 314 | -10/Materials | Build established: Mutant 373 | -10/Materials | Entered another Materials area 373 | -9/Materials | Evolved 2 slots: Propulsion x1, Utility x1 789 | -9/Materials | Discovered new exit (range 3) 865 | -9/Materials | Entered another Materials area 865 | -8/Materials | Evolved 2 slots: Propulsion x1, Utility x1 1498 | -8/Materials | Lost 4 parts (1p1n1u1w) 1877 | -8/Materials | Core integrity fell below 50% 1890 | -8/Materials | Core integrity fell below 20% 1897 | -8/Materials | Destroyed by G-47 Trooper with Particle Gun Last Messages --------------- effect. 01838_ S-10 Pest system corrupted by crushing effect. 01839_ S-10 Pest system terminally corrupted. 01853_ Destroyed Katana. 01853_ L-31 Rogue system corrupted by crushing effect. 01854_ Insulated Plating destroyed. 01858_ Ion Engine destroyed. 01858_ Critical hit (Burn: +37). 01860_ W-25 Informer sends out distress signal. 01862_ K-01 Serf collects debris. 01867_ K-01 Serf destroyed. 01873_ Carbon-fiber Leg destroyed. 01874_ Hvy. Flail destroyed. 01874_ Critical hit (Burn: +37). 01875_ W-25 Informer sends out distress signal. 01893_ S-10 Pest destroyed. 01895_ G-47 Trooper destroyed. 01896_ Critical hit (Burn: +37). Map ----- +----------------------------------------------------+ | ??????????## """" #% %# """ #???????????????? | | ???????????# [+% #[ """ #???????????????? | | ???????????#"" =# % # ! """ #???????????????? | | ???????????#"T # # #???????????????? | | ???????????#""== # ##########???????????????? | | ???????????# [= # #????????????????????????? | | ????????##?########## #????????????????????????? | | ?????#### #### #????????????????????????? | | ?????# # #????????????????????????? | | ?????# "S + % ########?????????????????? | | ?????# """ ##+##### # !!!#?????????????????? | | ?????# "" # # # !! #?????????????????? | | ?????# # # # !! #?????????????????? | | ?????# # + + #?????????????????? | | ???? + !!! # # # #?????????????????? | | ??? # !!! # # # #?????????????????? | | ?? ?# !![ # # ######################???? | | ?#???################ ??? | | ????????????????????# ??? | | ????????????????????# %= ??? | | ????????????????"" + *##########?????????? | | ????????????????"" # % #??????????????????? | | ????????????????????# ####??????????????????? | | ????????????????????# %#?????????????????????? | | ????????????????????# ##;###???????????????????? | | ????????????????????# #@%[ #???????????????????? | | ????????????????????# #!%= #???????????????????? | | ????????????????????# #g[[!#???????????????????? | | ???????????????????? +*g!!#???????????????????? | | ??????????????????? # w!!#???????????????????? | | ?????????????????? # #???????????????????? | | ????????????????? #!Y #???????????????????? | | ??????????????????? ? ?# #???????????????????? | | ????????????????????????# #???????????????????? | | ????????????????????????###a##???????????????????? | | ??????????????????????????? a????????????????????? | | ??????????????????????????? ????????????????????? | | ??????????????????????????? ????????????????????? | | ???????????????????????????+#????????????????????? | | ?????????????????????????????????????????????????? | | ?????????????????????????????????????????????????? | | ?????????????????????????????????????????????????? | | ?????????????????????????????????????????????????? | | ?????????????????????????????????????????????????? | | ?????????????????????????????????????????????????? | | ?????????????????????????????????????????????????? | | ?????????????????????????????????????????????????? | | ?????????????????????????????????????????????????? | | ?????????????????????????????????????????????????? | | ?????????????????????????????????????????????????? | +----------------------------------------------------+ Best States ------------- Heat Dissipation 41 Energy Generation 10 Energy Capacity 250 Matter Stores 300 Matter Capacity 300 Sight Range 16 Terrain Scan Density 10 ECM Strength 1 Armor Coverage 150 Resistance: EM 15 Propulsion Shielding 33 Evasion (%) 55 Recoil Reduction 4 Item Schematics ----------------- None Robot Schematics ------------------ None Fabricated ------------ Nothing Alien Tech Used ----------------- None Achievements -------------- Risk Taker Challenges ------------ None Game ------ Seed MomentumNavigationGenerator Manual? 0 Play Time 00:26:02 Cumulative 9.6 hours Start 2024.03.24 @ 02:45:38 End 2024.03.24 @ 03:13:13 Sessions 1 Manual Loads 0 Difficulty Rogue Special Mode None Game No. 25 Rogue 25 Adventurer 0 Explorer 0 Win Type - Total 0 Types 0/0/0/0/0/0/0/0/0 Lore% 5 Gallery% 10 Achievement% 7 Wizard Run 0 Options --------- Layout 1 ASCII 0 Keyboard 0 Movement Mouse Keybinds 0 Fullscreen 1 Font 24/Smallcaps Map View 50x35 Zoom Use 0% Tactical HUD 1 Map Filters NONE Filters NONE Steam 1 RUN: 222fa8c8-9f21-4eff-b40d-fe9fc2113f1a